[Event "GrandPrix_30.05"]
[Site "Chess.com"]
[Date "2020.05.30"]
[Round "2"]
[White "Nitzan_Steinberg"]
[Black "VincentKeymer"]
[Result "1/2-1/2"]
[WhiteElo "2400"]
[BlackElo "2720"]
[TimeControl "600+2"]
[EndTime "8:57:20 PDT"]
[Termination "Game drawn by stalemate"]

1. e4 {[%clk 0:10:01.9]} 1... e6 {[%clk 0:10:00.6]} 2. d4 {[%clk 0:09:53.8]}
2... d5 {[%clk 0:10:01.8]} 3. exd5 {[%clk 0:09:53.3]} 3... exd5 {[%clk
0:10:02.4]} 4. Nf3 {[%clk 0:09:55]} 4... Bd6 {[%clk 0:10:02.1]} 5. c4 {[%clk
0:09:49.8]} 5... Nf6 {[%clk 0:10:03.1]} 6. c5 {[%clk 0:09:34.6]} 6... Be7 {[%clk
0:10:03.5]} 7. Nc3 {[%clk 0:09:30]} 7... O-O {[%clk 0:09:59.9]} 8. Bd3 {[%clk
0:09:27.2]} 8... Bg4 {[%clk 0:09:59.1]} 9. h3 {[%clk 0:09:21.6]} 9... Bh5 {[%clk
0:09:54.4]} 10. g4 {[%clk 0:09:03.8]} 10... Bg6 {[%clk 0:09:53.2]} 11. Bxg6
{[%clk 0:08:55.6]} 11... hxg6 {[%clk 0:09:47.3]} 12. Qd3 {[%clk 0:08:15.2]}
12... Nc6 {[%clk 0:09:30.9]} 13. Bf4 {[%clk 0:07:51.9]} 13... b6 {[%clk
0:09:22.7]} 14. cxb6 {[%clk 0:07:43.3]} 14... axb6 {[%clk 0:09:15.9]} 15. O-O
{[%clk 0:07:39.6]} 15... Bd6 {[%clk 0:08:50.2]} 16. Bg5 {[%clk 0:07:18.7]} 16...
Nb4 {[%clk 0:08:21.1]} 17. Qb1 {[%clk 0:07:11.5]} 17... c6 {[%clk 0:07:49.4]}
18. a3 {[%clk 0:06:40.2]} 18... Na6 {[%clk 0:07:47.7]} 19. Ne5 {[%clk
0:06:40.9]} 19... Qc7 {[%clk 0:07:33.6]} 20. f4 {[%clk 0:04:42.7]} 20... Rfe8
{[%clk 0:05:53.3]} 21. Bh4 {[%clk 0:04:16.6]} 21... b5 {[%clk 0:05:11.1]} 22. b4
{[%clk 0:04:01.9]} 22... Qb6 {[%clk 0:04:58.4]} 23. Bf2 {[%clk 0:03:38]} 23...
Nb8 {[%clk 0:04:19.1]} 24. Qd3 {[%clk 0:03:08]} 24... Qb7 {[%clk 0:04:04.8]} 25.
f5 {[%clk 0:02:41.9]} 25... g5 {[%clk 0:03:37.2]} 26. Nf3 {[%clk 0:02:19.8]}
26... Nh7 {[%clk 0:03:33.9]} 27. Be3 {[%clk 0:02:05.4]} 27... f6 {[%clk
0:03:23.4]} 28. Bd2 {[%clk 0:01:29.2]} 28... Nd7 {[%clk 0:03:19.9]} 29. Rfe1
{[%clk 0:01:12.5]} 29... Nb6 {[%clk 0:03:17.6]} 30. Rxe8+ {[%clk 0:01:10.3]}
30... Rxe8 {[%clk 0:03:19.5]} 31. Re1 {[%clk 0:01:11.4]} 31... Rxe1+ {[%clk
0:03:18.1]} 32. Bxe1 {[%clk 0:01:10.4]} 32... Nf8 {[%clk 0:03:09.9]} 33. h4
{[%clk 0:01:00.7]} 33... gxh4 {[%clk 0:03:09.5]} 34. Bxh4 {[%clk 0:01:01.5]}
34... Qa7 {[%clk 0:02:55.6]} 35. Nb1 {[%clk 0:00:56.7]} 35... Nc4 {[%clk
0:02:53.4]} 36. g5 {[%clk 0:00:48.1]} 36... Qe7 {[%clk 0:02:49.6]} 37. Nbd2
{[%clk 0:00:30.4]} 37... Nd7 {[%clk 0:02:44]} 38. g6 {[%clk 0:00:21.5]} 38...
Ndb6 {[%clk 0:02:21.3]} 39. Nb3 {[%clk 0:00:18.1]} 39... Qe3+ {[%clk 0:02:08.7]}
40. Qxe3 {[%clk 0:00:18.7]} 40... Nxe3 {[%clk 0:02:10.6]} 41. Na5 {[%clk
0:00:20]} 41... Nxf5 {[%clk 0:02:11.5]} 42. Nxc6 {[%clk 0:00:20.7]} 42... Nc4
{[%clk 0:02:11.8]} 43. Be1 {[%clk 0:00:12.1]} 43... Nxa3 {[%clk 0:02:09.3]} 44.
Kf1 {[%clk 0:00:12]} 44... Ne7 {[%clk 0:02:02.2]} 45. Nxe7+ {[%clk 0:00:08.7]}
45... Bxe7 {[%clk 0:02:04.1]} 46. Nh4 {[%clk 0:00:08.8]} 46... Nc2 {[%clk
0:01:56.3]} 47. Nf5 {[%clk 0:00:09.9]} 47... Kf8 {[%clk 0:01:52.2]} 48. Ke2
{[%clk 0:00:07.9]} 48... Bxb4 {[%clk 0:01:46.9]} 49. Bxb4+ {[%clk 0:00:07.1]}
49... Nxb4 {[%clk 0:01:48.8]} 50. Nd6 {[%clk 0:00:08.5]} 50... Nc6 {[%clk
0:01:38.8]} 51. Nxb5 {[%clk 0:00:09.6]} 51... Ke7 {[%clk 0:01:30.7]} 52. Ke3
{[%clk 0:00:10.5]} 52... Kd7 {[%clk 0:01:27]} 53. Kf3 {[%clk 0:00:05.7]} 53...
Ne7 {[%clk 0:01:27.6]} 54. Nc3 {[%clk 0:00:05.8]} 54... Kc6 {[%clk 0:01:19.7]}
55. Kf4 {[%clk 0:00:07.1]} 55... Nxg6+ {[%clk 0:01:20.5]} 56. Kf5 {[%clk
0:00:08.7]} 56... Nf8 {[%clk 0:01:15.8]} 57. Nb1 {[%clk 0:00:04]} 57... Kd6
{[%clk 0:01:14.6]} 58. Nc3 {[%clk 0:00:04.4]} 58... Ne6 {[%clk 0:01:05.1]} 59.
Nb5+ {[%clk 0:00:05.2]} 59... Ke7 {[%clk 0:01:01.7]} 60. Kg6 {[%clk 0:00:06.4]}
60... Kf8 {[%clk 0:01:02.2]} 61. Nc3 {[%clk 0:00:04.7]} 61... Nc7 {[%clk
0:00:55.9]} 62. Na4 {[%clk 0:00:05.7]} 62... Nb5 {[%clk 0:00:44.5]} 63. Nb6
{[%clk 0:00:06.7]} 63... Nxd4 {[%clk 0:00:44.6]} 64. Nxd5 {[%clk 0:00:07.3]}
64... f5 {[%clk 0:00:41.3]} 65. Nf4 {[%clk 0:00:06.6]} 65... Kg8 {[%clk
0:00:36.2]} 66. Nd5 {[%clk 0:00:05.9]} 66... Kf8 {[%clk 0:00:28]} 67. Nf4 {[%clk
0:00:07]} 67... Nc6 {[%clk 0:00:20.2]} 68. Kxf5 {[%clk 0:00:07.4]} 68... Kf7
{[%clk 0:00:20.4]} 69. Kg5 {[%clk 0:00:08]} 69... Nd4 {[%clk 0:00:18.9]} 70. Nh5
{[%clk 0:00:07.6]} 70... Ne6+ {[%clk 0:00:19.8]} 71. Kg4 {[%clk 0:00:08.6]}
71... g6 {[%clk 0:00:21.1]} 72. Nf4 {[%clk 0:00:08]} 72... Nxf4 {[%clk
0:00:17.5]} 73. Kxf4 {[%clk 0:00:09.2]} 73... Kf6 {[%clk 0:00:18.9]} 74. Kg4
{[%clk 0:00:10.5]} 74... g5 {[%clk 0:00:20.2]} 75. Kg3 {[%clk 0:00:11.7]} 75...
Kg7 {[%clk 0:00:21.5]} 76. Kg4 {[%clk 0:00:12.9]} 76... Kg6 {[%clk 0:00:23]} 77.
Kg3 {[%clk 0:00:14]} 77... Kh5 {[%clk 0:00:24.9]} 78. Kh3 {[%clk 0:00:15.1]}
78... g4+ {[%clk 0:00:25.7]} 79. Kg3 {[%clk 0:00:16.5]} 79... Kg5 {[%clk
0:00:27.6]} 80. Kg2 {[%clk 0:00:17.8]} 80... Kf4 {[%clk 0:00:29.4]} 81. Kf2
{[%clk 0:00:19]} 81... Ke4 {[%clk 0:00:30.8]} 82. Kg3 {[%clk 0:00:20]} 82... Kf5
{[%clk 0:00:31.9]} 83. Kg2 {[%clk 0:00:20.9]} 83... Kg6 {[%clk 0:00:33.3]} 84.
Kg3 {[%clk 0:00:22.1]} 84... Kg5 {[%clk 0:00:34.7]} 85. Kg2 {[%clk 0:00:22.9]}
85... Kf4 {[%clk 0:00:36]} 86. Kf2 {[%clk 0:00:24]} 86... g3+ {[%clk 0:00:37.9]}
87. Kg2 {[%clk 0:00:25.3]} 87... Kg4 {[%clk 0:00:39.7]} 88. Kg1 {[%clk
0:00:26.1]} 88... Kh3 {[%clk 0:00:39.2]} 89. Kh1 {[%clk 0:00:27.2]} 89... Kh4
{[%clk 0:00:40.6]} 90. Kg2 {[%clk 0:00:27.9]} 90... Kg4 {[%clk 0:00:41.8]} 91.
Kg1 {[%clk 0:00:29.1]} 91... Kf5 {[%clk 0:00:43.4]} 92. Kg2 {[%clk 0:00:30.2]}
92... Kf4 {[%clk 0:00:44.9]} 93. Kg1 {[%clk 0:00:30.6]} 93... Ke3 {[%clk
0:00:45.9]} 94. Kg2 {[%clk 0:00:31.7]} 94... Kf4 {[%clk 0:00:47.1]} 95. Kg1
{[%clk 0:00:32.6]} 95... Kf3 {[%clk 0:00:48.2]} 96. Kf1 {[%clk 0:00:33.1]} 96...
g2+ {[%clk 0:00:48.4]} 97. Kg1 {[%clk 0:00:34.3]} 97... Kg3 {[%clk 0:00:50.3]}
1/2-1/2

[Event "GrandPrix_30.05"]
[Site "Chess.com"]
[Date "2020.05.30"]
[Round "2"]
[White "ulkaf961"]
[Black "SavelievAlexei"]
[Result "0-1"]
[WhiteElo "1989"]
[BlackElo "2195"]
[TimeControl "600+2"]
[EndTime "8:57:20 PDT"]
[Termination "SavelievAlexei won on time"]

1. e4 {[%clk 0:10:00.7]} 1... c5 {[%clk 0:10:00.6]} 2. Nf3 {[%clk 0:10:01]} 2...
e6 {[%clk 0:10:02.3]} 3. c4 {[%clk 0:09:47.7]} 3... b6 {[%clk 0:09:51.1]} 4. Nc3
{[%clk 0:09:42.6]} 4... Bb7 {[%clk 0:09:52.1]} 5. d4 {[%clk 0:09:42.3]} 5...
cxd4 {[%clk 0:09:52.9]} 6. Nxd4 {[%clk 0:09:43]} 6... d6 {[%clk 0:09:53.8]} 7.
Bd3 {[%clk 0:09:37.4]} 7... Nd7 {[%clk 0:09:54.4]} 8. O-O {[%clk 0:09:37.3]}
8... Ne5 {[%clk 0:09:55.4]} 9. Bc2 {[%clk 0:09:16.8]} 9... Rc8 {[%clk
0:09:52.6]} 10. f4 {[%clk 0:08:48.3]} 10... Nc6 {[%clk 0:09:50.2]} 11. Be3
{[%clk 0:08:05.9]} 11... Nf6 {[%clk 0:09:46.9]} 12. Ba4 {[%clk 0:07:21.4]} 12...
Be7 {[%clk 0:09:26.9]} 13. f5 {[%clk 0:07:21.4]} 13... Qd7 {[%clk 0:09:20.5]}
14. Nd5 {[%clk 0:05:43.1]} 14... Nxe4 {[%clk 0:08:46.6]} 15. fxe6 {[%clk
0:05:04.4]} 15... fxe6 {[%clk 0:08:48.5]} 16. Nb4 {[%clk 0:04:56.6]} 16... Bf6
{[%clk 0:07:46.3]} 17. Ndxc6 {[%clk 0:04:02.1]} 17... Bxc6 {[%clk 0:07:45.4]}
18. Nxc6 {[%clk 0:04:01.1]} 18... Rxc6 {[%clk 0:07:46.6]} 19. Qh5+ {[%clk
0:02:22.4]} 19... Ke7 {[%clk 0:07:37.3]} 20. Qf3 {[%clk 0:02:15.1]} 20... d5
{[%clk 0:07:20]} 21. cxd5 {[%clk 0:02:09.8]} 21... exd5 {[%clk 0:07:21.9]} 22.
Bxc6 {[%clk 0:01:58.9]} 22... Qxc6 {[%clk 0:07:22.8]} 23. Rac1 {[%clk
0:01:59.2]} 23... Qd7 {[%clk 0:07:10.2]} 24. Rfd1 {[%clk 0:01:35]} 24... Rd8
{[%clk 0:06:56.3]} 25. Bf4 {[%clk 0:01:30.2]} 25... Qe6 {[%clk 0:06:44.5]} 26.
Qa3+ {[%clk 0:01:11.9]} 26... Kf7 {[%clk 0:06:26.5]} 27. Qxa7+ {[%clk
0:01:09.7]} 27... Kg6 {[%clk 0:06:27.7]} 28. Qa3 {[%clk 0:00:59]} 28... Be7
{[%clk 0:04:41.8]} 29. b4 {[%clk 0:00:58.5]} 29... h6 {[%clk 0:03:51.8]} 30. Qb3
{[%clk 0:00:57.7]} 30... Qf5 {[%clk 0:03:42.9]} 31. Be3 {[%clk 0:00:49.8]} 31...
Rd6 {[%clk 0:03:28.5]} 32. Rc7 {[%clk 0:00:33.5]} 32... Bf6 {[%clk 0:03:22.4]}
33. Rf1 {[%clk 0:00:33]} 33... Qg4 {[%clk 0:03:10.5]} 34. Qd1 {[%clk 0:00:30.8]}
34... Qe6 {[%clk 0:02:58.5]} 35. Qf3 {[%clk 0:00:29.3]} 35... b5 {[%clk
0:02:00.9]} 36. Qd1 {[%clk 0:00:25.2]} 36... d4 {[%clk 0:01:16.6]} 37. Bf4
{[%clk 0:00:25.3]} 37... Rc6 {[%clk 0:01:17.9]} 38. Rxc6 {[%clk 0:00:24.9]}
38... Qxc6 {[%clk 0:01:19.8]} 39. Qd3 {[%clk 0:00:24.8]} 39... Kf7 {[%clk
0:01:20.6]} 40. Re1 {[%clk 0:00:24.5]} 40... Nc3 {[%clk 0:01:20.3]} 41. Bg3
{[%clk 0:00:23.2]} 41... Qc4 {[%clk 0:01:15.9]} 42. Qf3 {[%clk 0:00:09.8]} 42...
d3 {[%clk 0:01:11.4]} 43. Qb7+ {[%clk 0:00:04.4]} 43... Kg6 {[%clk 0:01:12]} 44.
Qd7 {[%clk 0:00:02.4]} 44... Ne2+ {[%clk 0:01:07.3]} 45. Kh1 {[%clk 0:00:03.4]}
45... Qe4 {[%clk 0:00:27.4]} 46. Rd1 {[%clk 0:00:02.8]} 46... Nd4 {[%clk
0:00:10.3]} 47. h3 {[%clk 0:00:04.1]} 47... Qe2 {[%clk 0:00:06.7]} 48. Qg4+
{[%clk 0:00:04.9]} 48... Qxg4 {[%clk 0:00:07.4]} 49. hxg4 {[%clk 0:00:05.6]}
49... Nc2 {[%clk 0:00:02.9]} 50. Rxd3 {[%clk 0:00:06.1]} 50... Nxb4 {[%clk
0:00:04.1]} 51. Rb3 {[%clk 0:00:07.6]} 51... Nxa2 {[%clk 0:00:04.6]} 52. Rxb5
{[%clk 0:00:08.2]} 52... Nc3 {[%clk 0:00:05.9]} 53. Rb6 {[%clk 0:00:09]} 53...
Nd5 {[%clk 0:00:05.5]} 54. Rd6 {[%clk 0:00:09.9]} 54... Ne3 {[%clk 0:00:06.5]}
55. Be5 {[%clk 0:00:09.7]} 55... Nxg4 {[%clk 0:00:05.5]} 56. Bxf6 {[%clk
0:00:10.7]} 56... Nxf6 {[%clk 0:00:07.4]} 57. Kh2 {[%clk 0:00:11.8]} 57... Kg5
{[%clk 0:00:08.3]} 58. Ra6 {[%clk 0:00:11]} 58... Ne4 {[%clk 0:00:08.1]} 59.
Ra5+ {[%clk 0:00:11.3]} 59... Kg6 {[%clk 0:00:09.2]} 60. Ra6+ {[%clk 0:00:12.2]}
60... Nf6 {[%clk 0:00:10.4]} 61. Kg3 {[%clk 0:00:12.7]} 61... Kg5 {[%clk
0:00:09.6]} 62. Ra5+ {[%clk 0:00:13.2]} 62... Kg6 {[%clk 0:00:10.9]} 63. Kf4
{[%clk 0:00:14.2]} 63... Nh5+ {[%clk 0:00:11.7]} 64. Kg4 {[%clk 0:00:14.8]}
64... Nf6+ {[%clk 0:00:12.9]} 65. Kf4 {[%clk 0:00:14.7]} 65... Nh5+ {[%clk
0:00:13.9]} 66. Ke4 {[%clk 0:00:14.9]} 66... Nf6+ {[%clk 0:00:14.8]} 67. Kf3
{[%clk 0:00:14.6]} 67... Nh5 {[%clk 0:00:14.4]} 68. g3 {[%clk 0:00:14]} 68...
Nf6 {[%clk 0:00:15.4]} 69. g4 {[%clk 0:00:14.2]} 69... Nh7 {[%clk 0:00:15.3]}
70. Kf4 {[%clk 0:00:13.9]} 70... Ng5 {[%clk 0:00:04.4]} 71. Ra6+ {[%clk
0:00:14.9]} 71... Kh7 {[%clk 0:00:05.3]} 72. Kf5 {[%clk 0:00:15.3]} 72... Nf3
{[%clk 0:00:05.6]} 73. Rd6 {[%clk 0:00:14]} 73... Ng5 {[%clk 0:00:06.1]} 74. Kf4
{[%clk 0:00:12.7]} 74... Kg8 {[%clk 0:00:05.7]} 75. Kf5 {[%clk 0:00:13]} 75...
Kh7 {[%clk 0:00:06.2]} 76. Rd7 {[%clk 0:00:11.9]} 76... Nf3 {[%clk 0:00:05.5]}
77. Ke6 {[%clk 0:00:08.9]} 77... Kg6 {[%clk 0:00:06.2]} 78. Rd5 {[%clk
0:00:07.3]} 78... Nh2 {[%clk 0:00:06.6]} 0-1

[Event "GrandPrix_30.05"]
[Site "Chess.com"]
[Date "2020.05.30"]
[Round "2"]
[White "Gannikus21"]
[Black "Durarbayli"]
[Result "0-1"]
[WhiteElo "2182"]
[BlackElo "2565"]
[TimeControl "600+2"]
[EndTime "8:57:21 PDT"]
[Termination "Durarbayli won by resignation"]

1. e4 {[%clk 0:10:01.9]} 1... c5 {[%clk 0:09:59.8]} 2. Nf3 {[%clk 0:10:02.5]}
2... d6 {[%clk 0:10:00.4]} 3. d4 {[%clk 0:10:03.2]} 3... cxd4 {[%clk 0:09:58.3]}
4. Nxd4 {[%clk 0:10:05.1]} 4... Nf6 {[%clk 0:09:58.5]} 5. Nc3 {[%clk 0:10:06.5]}
5... Nc6 {[%clk 0:09:52.1]} 6. Bg5 {[%clk 0:10:05.7]} 6... Qb6 {[%clk
0:09:52.3]} 7. Nb3 {[%clk 0:10:04.6]} 7... e6 {[%clk 0:09:49.3]} 8. Qd2 {[%clk
0:10:04.9]} 8... a6 {[%clk 0:09:48.7]} 9. f4 {[%clk 0:10:02]} 9... Ng4 {[%clk
0:08:43.8]} 10. Bh4 {[%clk 0:09:05.6]} 10... Qe3+ {[%clk 0:08:23.9]} 11. Be2
{[%clk 0:08:57.6]} 11... Be7 {[%clk 0:08:03.5]} 12. Bg3 {[%clk 0:07:50.4]} 12...
h5 {[%clk 0:07:23]} 13. O-O-O {[%clk 0:07:19.7]} 13... b5 {[%clk 0:06:31.9]} 14.
h3 {[%clk 0:06:41.2]} 14... Qxd2+ {[%clk 0:05:53]} 15. Rxd2 {[%clk 0:06:35.6]}
15... Ne3 {[%clk 0:05:40.2]} 16. Nxb5 {[%clk 0:05:39.1]} 16... axb5 {[%clk
0:05:08.5]} 17. Bxb5 {[%clk 0:05:41]} 17... Bd7 {[%clk 0:05:07.2]} 18. Re1
{[%clk 0:05:04]} 18... h4 {[%clk 0:04:34.4]} 19. Bh2 {[%clk 0:05:03.2]} 19...
Nxc2 {[%clk 0:04:35.3]} 20. Rxc2 {[%clk 0:04:56.6]} 20... Nb4 {[%clk 0:04:35.5]}
21. Bxd7+ {[%clk 0:04:31.9]} 21... Kxd7 {[%clk 0:04:37.4]} 22. Rd2 {[%clk
0:04:33.1]} 22... Nxa2+ {[%clk 0:04:23]} 23. Kb1 {[%clk 0:04:33.9]} 23... Rhb8
{[%clk 0:04:19.9]} 24. Re3 {[%clk 0:04:14.1]} 24... Ke8 {[%clk 0:03:56.1]} 25.
g4 {[%clk 0:03:37.1]} 25... hxg3 {[%clk 0:03:53.7]} 26. Rxg3 {[%clk 0:03:36.8]}
26... Kf8 {[%clk 0:02:36.2]} 27. f5 {[%clk 0:03:23.5]} 27... e5 {[%clk
0:02:31.3]} 28. Rdg2 {[%clk 0:02:37.5]} 28... Bh4 {[%clk 0:02:02.6]} 29. Rd3
{[%clk 0:02:33.9]} 29... Ra6 {[%clk 0:01:55]} 30. Bxe5 {[%clk 0:01:48.9]} 30...
dxe5 {[%clk 0:01:36.2]} 31. Nc5 {[%clk 0:01:48.4]} 31... Ra7 {[%clk 0:01:24.9]}
32. Nd7+ {[%clk 0:01:31.1]} 32... Rxd7 {[%clk 0:01:25.6]} 33. Rxd7 {[%clk
0:01:33]} 33... Nc3+ {[%clk 0:01:26.9]} 34. Kc2 {[%clk 0:01:23.2]} 34... Nxe4
{[%clk 0:01:28]} 35. Rc7 {[%clk 0:00:47.5]} 35... Bd8 {[%clk 0:01:22.2]} 36. Rc6
{[%clk 0:00:42.9]} 36... Nf6 {[%clk 0:00:57.6]} 37. Kd3 {[%clk 0:00:41.2]} 37...
e4+ {[%clk 0:00:58.3]} 38. Kc4 {[%clk 0:00:37.6]} 38... Ba5 {[%clk 0:00:55.9]}
39. Ra6 {[%clk 0:00:26.8]} 39... Bb4 {[%clk 0:00:50]} 40. Ra4 {[%clk 0:00:19.9]}
40... Be1 {[%clk 0:00:31.9]} 41. Re2 {[%clk 0:00:18.1]} 41... Rc8+ {[%clk
0:00:33.1]} 42. Kb5 {[%clk 0:00:17.1]} 42... Rc1 {[%clk 0:00:32.2]} 43. b4
{[%clk 0:00:16.9]} 43... Rb1 {[%clk 0:00:15.4]} 44. Kc4 {[%clk 0:00:14]} 44...
Ne8 {[%clk 0:00:11.9]} 45. Ra8 {[%clk 0:00:08.5]} 45... Rxb4+ {[%clk 0:00:09.8]}
46. Kc5 {[%clk 0:00:09.7]} 46... Rb1 {[%clk 0:00:08]} 47. Rxe4 {[%clk
0:00:10.1]} 47... Bb4+ {[%clk 0:00:09.6]} 48. Kc6 {[%clk 0:00:07.3]} 48... Rc1+
{[%clk 0:00:06.3]} 49. Kb5 {[%clk 0:00:07.4]} 49... Be7 {[%clk 0:00:06.8]} 50.
h4 {[%clk 0:00:04.9]} 50... Rc5+ {[%clk 0:00:06.6]} 51. Kb6 {[%clk 0:00:05.9]}
51... Rxf5 {[%clk 0:00:07.5]} 52. Kc6 {[%clk 0:00:07.4]} 52... Rf6+ {[%clk
0:00:08]} 53. Kb7 {[%clk 0:00:07]} 53... Re6 {[%clk 0:00:07.9]} 54. Rxe6 {[%clk
0:00:07.6]} 54... fxe6 {[%clk 0:00:09.8]} 55. Kc6 {[%clk 0:00:09.5]} 55... Kf7
{[%clk 0:00:09.9]} 56. h5 {[%clk 0:00:11]} 56... Nf6 {[%clk 0:00:10.6]} 57. Rh8
{[%clk 0:00:10.3]} 57... Bf8 {[%clk 0:00:11.5]} 58. Kb5 {[%clk 0:00:07.8]} 58...
Ng8 {[%clk 0:00:07.3]} 59. Kc4 {[%clk 0:00:07.6]} 59... Be7 {[%clk 0:00:08.4]}
60. Kd3 {[%clk 0:00:07.3]} 60... Bg5 {[%clk 0:00:09.4]} 61. Ke4 {[%clk
0:00:07.2]} 61... Bh6 {[%clk 0:00:10]} 62. Kf3 {[%clk 0:00:08.1]} 62... Nf6
{[%clk 0:00:10.4]} 63. Rb8 {[%clk 0:00:07.5]} 63... Nxh5 {[%clk 0:00:11.3]} 64.
Rb7+ {[%clk 0:00:06.7]} 64... Kf6 {[%clk 0:00:12.3]} 65. Rb1 {[%clk 0:00:08.2]}
65... Nf4 {[%clk 0:00:13.1]} 66. Rh1 {[%clk 0:00:10]} 66... Kf5 {[%clk
0:00:11.6]} 67. Ra1 {[%clk 0:00:07.7]} 67... Bg5 {[%clk 0:00:12.3]} 68. Ra5+
{[%clk 0:00:07]} 68... e5 {[%clk 0:00:13.3]} 69. Ra4 {[%clk 0:00:07.8]} 69...
Bf6 {[%clk 0:00:13.9]} 70. Ra8 {[%clk 0:00:07.8]} 70... g5 {[%clk 0:00:15.3]}
71. Rf8 {[%clk 0:00:07.9]} 71... Ne6 {[%clk 0:00:13.6]} 72. Rf7 {[%clk
0:00:08.1]} 72... Nd4+ {[%clk 0:00:13]} 73. Kg3 {[%clk 0:00:08.5]} 73... e4
{[%clk 0:00:13.8]} 74. Rf8 {[%clk 0:00:09.5]} 74... Ne6 {[%clk 0:00:14.1]} 75.
Rf7 {[%clk 0:00:10.6]} 75... Nf4 {[%clk 0:00:15.1]} 76. Rf8 {[%clk 0:00:10.4]}
76... e3 {[%clk 0:00:15.7]} 77. Rf7 {[%clk 0:00:09.3]} 77... e2 {[%clk
0:00:16.7]} 78. Kf2 {[%clk 0:00:10.3]} 78... g4 {[%clk 0:00:16.1]} 79. Rf8
{[%clk 0:00:10.2]} 79... g3+ {[%clk 0:00:15.4]} 80. Ke1 {[%clk 0:00:06]} 80...
g2 {[%clk 0:00:15.4]} 0-1